fUST/lending_fUST_20240709
["ID","MTS","AMOUNT","RATE_DAILY","PERIOD"]
[331569198,1720521043269,-2129.39,0.00041643,30]
[331569199,1720521043279,-500.0,0.00041643,30]
[331569200,1720521043288,-500.0,0.00041643,30]
[331569201,1720521043297,-1478.19,0.00041643,30]
[331569203,1720521043306,-500.0,0.00041643,30]
[331569205,1720521043315,-718.63,0.00041917,30]
[331569206,1720521043324,-707.09,0.00041917,30]
[331569207,1720521043333,-553.27,0.00041917,30]
[331569208,1720521043342,-740.56,0.00041917,30]
[331569209,1720521043351,-500.0,0.00041917,30]
[331569210,1720521043360,-500.0,0.00041917,30]
[331569212,1720521043373,-500.0,0.00041917,30]
[331569218,1720521043432,-500.0,0.00041917,30]
[331569219,1720521043448,-868.9,0.00041917,30]
[331569220,1720521043457,-500.0,0.00041917,30]
[331569221,1720521043467,-500.0,0.00041917,30]
[331569222,1720521043476,-500.0,0.00041917,30]
[331569223,1720521043486,-565.11,0.00041917,30]
[331569224,1720521043495,-597.15,0.00041917,30]
[331569225,1720521043504,-519.73146183,0.00041917,30]
[331569226,1720521043513,-500.0,0.00041917,30]
[331569227,1720521043523,-500.0,0.00041917,30]
[331569228,1720521043531,-500.0,0.00041917,30]
[331569229,1720521043541,-500.0,0.00041917,30]
[331569230,1720521043550,-618.82,0.00041917,30]
[331569231,1720521043559,-842.29,0.00041917,30]
[331569232,1720521043569,-6274.77,0.00041917,30]
[331569233,1720521043578,-1147.72,0.00041917,30]
[331569234,1720521043587,-500.0,0.00041917,30]
[331569235,1720521043596,-543.48,0.00041917,30]
[331569236,1720521043605,-500.0,0.00041917,30]
[331569237,1720521043616,-500.0,0.00041917,30]
[331569238,1720521043625,-853.88,0.00041917,30]
[331569239,1720521043634,-500.0,0.00041917,30]
[331569240,1720521043644,-500.0,0.00041917,2]
[331569241,1720521043654,-558.39,0.00041917,30]
[331569242,1720521043663,-500.0,0.00041917,30]
[331569243,1720521043672,-811.27,0.00041917,30]
[331569244,1720521043682,-500.0,0.00041917,30]
[331569245,1720521043691,-500.0,0.00041917,30]
[331569246,1720521043703,-500.0,0.00041917,30]
[331569247,1720521043713,-500.0,0.00041917,30]
[331569248,1720521043722,-500.0,0.00041917,30]
[331569249,1720521043732,-479.02600227,0.00041917,30]
[331569250,1720521043741,-500.0,0.00041917,30]
[331569251,1720521043751,-500.0,0.00041917,30]
[331569252,1720521043760,-500.0,0.00041917,30]
[331569253,1720521043769,-500.0,0.00041917,30]
[331569254,1720521043780,-500.0,0.00041917,30]
[331569255,1720521043789,-500.0,0.00041917,30]
[331569256,1720521043799,-500.0,0.00041917,30]
[331569257,1720521043808,-500.0,0.00041917,30]
[331569258,1720521043817,-1811.68,0.00041917,30]
[331569259,1720521043826,-500.0,0.00041917,10]
[331569260,1720521043836,-500.0,0.00041917,30]
[331569261,1720521043845,-376.56778037,0.00041917,30]
[331569262,1720521043855,-500.0,0.00041917,30]
[331569263,1720521043864,-500.0,0.00041917,30]
[331569264,1720521043875,-595.77,0.00041917,30]
[331569265,1720521043884,-712.38,0.00041917,30]
[331569266,1720521043894,-3653.85,0.00041917,30]
[331569267,1720521043903,-500.0,0.00041917,30]
[331569268,1720521043913,-791.87,0.00041917,30]
[331569269,1720521043923,-1055.1,0.00041917,30]
[331569270,1720521043933,-883.43,0.00041917,30]
[331569271,1720521043943,-500.0,0.00041917,30]
[331569272,1720521043953,-500.0,0.00041917,2]
[331569273,1720521043963,-6436.66,0.00041917,7]
[331569274,1720521043973,-500.0,0.00041917,30]
[331569275,1720521043983,-500.0,0.00041917,30]
[331569276,1720521043993,-500.0,0.00041917,30]
[331569277,1720521044014,-827.15,0.00041917,30]
[331569278,1720521044024,-827.08,0.00041917,30]
[331569279,1720521044035,-4659.11,0.00041917,30]
[331569280,1720521044044,-965.2,0.00041917,30]
[331569281,1720521044055,-729.71,0.00041917,30]
[331569282,1720521044065,-500.0,0.00041917,30]
[331569283,1720521044074,-728.78,0.00041917,30]
[331569284,1720521044084,-151.0,0.00041917,14]
[331569285,1720521044094,-621.72,0.00041917,30]
[331569286,1720521044104,-1163.1,0.00041917,30]
[331569287,1720521044114,-1246.99,0.00041917,30]
[331569288,1720521044126,-500.0,0.00041917,30]
[331569289,1720521044135,-500.0,0.00041917,30]
[331569290,1720521044144,-500.0,0.00041917,30]
[331569291,1720521044154,-165.52713,0.00041917,2]
[331569292,1720521044163,-151.0,0.00041917,14]
[331569293,1720521044173,-589.23,0.00041917,30]
[331569294,1720521044182,-165.52713,0.00041917,2]
[331569295,1720521044192,-151.0,0.00041917,14]
[331569296,1720521044202,-886.16,0.00041917,30]
[331569297,1720521044212,-11363.55,0.00041917,30]
[331569298,1720521044222,-500.0,0.00041917,30]
[331569299,1720521044231,-1718.08,0.00041917,30]
[331569300,1720521044241,-500.0,0.00041917,30]
[331569301,1720521044250,-2626.43,0.00041917,30]
[331569302,1720521044260,-717.09,0.00041917,30]
[331569303,1720521044269,-500.0,0.00041917,30]
[331569304,1720521044279,-500.0,0.00041917,30]
[331569305,1720521044289,-151.0,0.00041917,14]
[331569306,1720521044299,-500.0,0.00041917,30]
[331569307,1720521044308,-500.0,0.00041917,2]
[331569308,1720521044318,-1027.29,0.00041917,30]
[331569309,1720521044327,-1010.58,0.00041917,30]
[331569310,1720521044337,-500.0,0.00041917,30]
[331569311,1720521044346,-2129.39,0.00041917,30]
[331569312,1720521044356,-500.0,0.00041917,30]
[331569313,1720521044366,-259.61019667,0.00041917,30]
[331569314,1720521044376,-1478.19,0.00041917,30]
[331569315,1720521044386,-500.0,0.00041917,30]
[331569316,1720521044396,-695.48082098,0.00041999,60]
[331569317,1720521044406,-39607.76425653,0.00042,120]
[331569318,1720521044416,-1078.826872,0.00042,14]
[331569319,1720521044426,-150.0,0.00042132,2]
[331569320,1720521044436,-1405.0,0.00042132,2]
[331569321,1720521044445,-153.0,0.00042146,2]
[331569322,1720521044455,-435.4329661,0.00042146,2]
[331569323,1720521044465,-153.0,0.00042146,2]
[331569324,1720521044474,-153.0,0.00042146,2]
[331569325,1720521044484,-153.0,0.00042146,2]
[331569326,1720521044494,-160.0,0.00042161,3]
[331569327,1720521044503,-288.02479007,0.00042183,2]
[331569328,1720521044512,-718.63,0.00042191,30]
[331569329,1720521044522,-707.09,0.00042191,30]
[331569330,1720521044532,-553.27,0.00042191,30]
[331569331,1720521044542,-740.56,0.00042191,30]
[331569332,1720521044551,-500.0,0.00042191,30]
[331569333,1720521044560,-500.0,0.00042191,30]
[331569334,1720521044644,-500.0,0.00042191,30]
[331569335,1720521044654,-500.0,0.00042191,30]
[331569336,1720521044664,-868.9,0.00042191,30]
[331569337,1720521044674,-500.0,0.00042191,30]
[331569339,1720521044683,-500.0,0.00042191,30]
[331569341,1720521044693,-536.37128315,0.00042191,30]
[331569342,1720521044706,-565.11,0.00042191,30]
[331569344,1720521044715,-597.15,0.00042191,30]
[331569346,1720521044724,-500.0,0.00042191,30]
[331569348,1720521044734,-500.0,0.00042191,30]
[331569349,1720521044743,-500.0,0.00042191,30]
[331569351,1720521044753,-500.0,0.00042191,30]
[331569352,1720521044762,-618.82,0.00042191,30]
[331569353,1720521044771,-842.29,0.00042191,30]
[331569354,1720521044783,-6274.77,0.00042191,30]
[331569355,1720521044792,-1147.72,0.00042191,30]
[331569356,1720521044802,-226.51638059,0.00042191,14]
[331569357,1720521044812,-500.0,0.00042191,30]
[331569358,1720521044824,-543.48,0.00042191,30]
[331569359,1720521044834,-500.0,0.00042191,30]
[331569360,1720521044843,-853.88,0.00042191,30]
[331569361,1720521044853,-645.26066582,0.00042191,30]
[331569362,1720521044863,-500.0,0.00042191,2]
[331569363,1720521044873,-558.39,0.00042191,30]
[331569364,1720521044882,-500.0,0.00042191,30]
[331569365,1720521044892,-811.27,0.00042191,30]
[331569366,1720521044901,-500.0,0.00042191,30]
[331569367,1720521044911,-475.44537521,0.00042191,30]
[331569368,1720521044920,-500.0,0.00042191,30]
[331569369,1720521044931,-316.16585282,0.00042191,30]
[331569370,1720521044940,-500.0,0.00042191,30]
[331569371,1720521044950,-500.0,0.00042191,30]
[331569372,1720521044960,-500.0,0.00042191,30]
[331569373,1720521044970,-274.59115437,0.00042191,30]
[331569374,1720521044981,-500.0,0.00042191,30]
[331569375,1720521044990,-500.0,0.00042191,30]
[331569376,1720521044999,-500.0,0.00042191,30]
[331569377,1720521045008,-500.0,0.00042191,30]
[331569378,1720521045019,-500.0,0.00042191,30]
[331569379,1720521045028,-1811.68,0.00042191,30]
[331569380,1720521045038,-155.56364662,0.00042191,10]
[331569381,1720521045048,-500.0,0.00042191,30]
[331569382,1720521045058,-500.0,0.00042191,30]
[331569383,1720521045068,-500.0,0.00042191,30]
[331569384,1720521045079,-595.77,0.00042191,30]
[331569385,1720521045088,-712.38,0.00042191,30]
[331569386,1720521045098,-3653.85,0.00042191,30]
[331569387,1720521045109,-500.0,0.00042191,30]
[331569388,1720521045119,-791.87,0.00042191,30]
[331569389,1720521045128,-1055.1,0.00042191,30]
[331569390,1720521045138,-883.43,0.00042191,30]
[331569391,1720521045148,-500.0,0.00042191,30]
[331569392,1720521045157,-507.22665725,0.00042191,2]
[331569393,1720521045167,-6436.66,0.00042191,7]
[331569394,1720521045176,-151.0,0.00042191,14]
[331569395,1720521045186,-500.0,0.00042191,30]
[331569396,1720521045196,-500.0,0.00042191,30]
[331569397,1720521045205,-500.0,0.00042191,30]
[331569398,1720521045215,-827.15,0.00042191,30]
[331569399,1720521045224,-827.08,0.00042191,30]
[331569400,1720521045234,-4659.11,0.00042191,30]
[331569401,1720521045243,-965.2,0.00042191,30]
[331569402,1720521045252,-729.71,0.00042191,30]
[331569403,1720521045262,-500.0,0.00042191,30]
[331569404,1720521045271,-728.78,0.00042191,30]
[331569405,1720521045281,-621.72,0.00042191,30]
[331569406,1720521045290,-1163.1,0.00042191,30]
[331569407,1720521045300,-1246.99,0.00042191,30]
[331569408,1720521045309,-500.0,0.00042191,30]
[331569409,1720521045320,-260.31785769,0.00042191,30]
[331569410,1720521045330,-500.0,0.00042191,30]
[331569411,1720521045340,-589.23,0.00042191,30]
[331569412,1720521045350,-886.16,0.00042191,30]
[331569413,1720521045360,-11363.55,0.00042191,30]
[331569414,1720521045370,-500.0,0.00042191,30]
[331569416,1720521045379,-1718.08,0.00042191,30]
[331569418,1720521045389,-500.0,0.00042191,30]
[331569419,1720521045398,-2626.43,0.00042191,30]
[331569420,1720521045408,-717.09,0.00042191,30]
[331569421,1720521045417,-500.0,0.00042191,30]
[331569422,1720521045427,-500.0,0.00042191,30]
[331569423,1720521045436,-500.0,0.00042191,30]
[331569424,1720521045446,-500.0,0.00042191,2]
[331569425,1720521045456,-1027.29,0.00042191,30]
[331569426,1720521045466,-1010.58,0.00042191,30]
[331569427,1720521045475,-500.0,0.00042191,30]
[331569428,1720521045485,-2129.39,0.00042191,30]
[331569429,1720521045494,-500.0,0.00042191,30]
[331569430,1720521045504,-1478.19,0.00042191,30]
[331569431,1720521045514,-500.0,0.00042191,30]
[331569432,1720521045523,-150.63846768,0.00042202,2]
[331569433,1720521045534,-153.0,0.00042299,2]
[331569434,1720521045543,-153.0,0.00042299,2]
[331569435,1720521045552,-153.0,0.00042299,2]
[331569436,1720521045562,-153.0,0.00042299,2]
[331569437,1720521045572,-153.0,0.00042299,2]
[331569438,1720521045582,-153.0,0.00042299,2]
[331569439,1720521045591,-153.0,0.00042299,2]
[331569440,1720521045600,-153.0,0.00042299,2]
[331569441,1720521045610,-153.0,0.00042299,2]
[331569442,1720521045620,-153.0,0.00042299,2]
[331569444,1720521045630,-153.0,0.00042299,2]
[331569446,1720521045639,-153.0,0.00042299,2]
[331569447,1720521045649,-153.0,0.00042299,2]
[331569448,1720521045658,-153.0,0.00042299,2]
[331569449,1720521045668,-153.0,0.00042299,2]
[331569452,1720521045677,-153.0,0.00042299,2]
[331569453,1720521045742,-153.0,0.00042299,2]
[331569454,1720521045751,-153.0,0.00042299,2]
[331569455,1720521045761,-153.0,0.00042299,2]
[331569456,1720521045771,-306.0,0.00042299,2]
[331569457,1720521045780,-500.0,0.00042356,2]
[331569458,1720521045790,-304.22675637,0.00042398,30]
[331569459,1720521045799,-306.0,0.00042408,2]
[331569460,1720521045809,-153.0,0.00042408,2]
[331569461,1720521045819,-153.0,0.00042408,2]
[331569462,1720521045830,-153.0,0.00042408,2]
[331569463,1720521045839,-153.0,0.00042408,2]
[331569464,1720521045849,-153.0,0.00042408,2]
[331569465,1720521045860,-153.0,0.00042408,2]
[331569466,1720521045870,-153.0,0.00042408,2]
[331569468,1720521045879,-153.0,0.00042408,2]
[331569470,1720521045889,-153.0,0.00042408,2]
[331569471,1720521045900,-153.0,0.00042408,2]
[331569472,1720521045910,-153.0,0.00042408,2]
[331569473,1720521045919,-153.0,0.00042408,2]
[331569474,1720521045931,-153.0,0.00042408,2]
[331569475,1720521045941,-153.0,0.00042408,2]
[331569476,1720521045951,-153.0,0.00042408,2]
[331569477,1720521045962,-153.0,0.00042408,2]
[331569478,1720521045972,-153.0,0.00042408,2]
[331569479,1720521045981,-153.0,0.00042408,2]
[331569480,1720521045991,-153.0,0.00042408,2]
[331569481,1720521046002,-162.802639,0.00042416,2]
[331569482,1720521046011,-278.2097649,0.0004242,2]
[331569483,1720521046020,-153.0,0.0004242,2]
[331569484,1720521046030,-153.0,0.0004242,2]
[331569485,1720521046040,-153.0,0.0004242,2]
[331569486,1720521046049,-153.0,0.0004242,2]
[331569487,1720521046062,-153.0,0.0004242,2]
[331569488,1720521046071,-153.0,0.0004242,2]
[331569489,1720521046081,-153.0,0.0004242,2]
[331569490,1720521046091,-153.0,0.0004242,2]
[331569491,1720521046102,-153.0,0.0004242,2]
[331569492,1720521046111,-153.0,0.0004242,2]
[331569493,1720521046122,-153.0,0.0004242,2]
[331569494,1720521046131,-153.0,0.0004242,2]
[331569495,1720521046152,-153.0,0.0004242,2]
[331569496,1720521046162,-153.0,0.0004242,2]
[331569497,1720521046172,-153.0,0.0004242,2]
[331569498,1720521046182,-153.0,0.0004242,2]
[331569499,1720521046193,-153.0,0.0004242,2]
[331569500,1720521046203,-153.0,0.0004242,2]
[331569501,1720521046213,-153.0,0.0004242,2]
[331569502,1720521046223,-153.0,0.0004242,2]
[331569503,1720521046233,-153.0,0.0004242,2]
[331569504,1720521046243,-718.63,0.00042465,30]
[331569505,1720521046253,-707.09,0.00042465,30]
[331569506,1720521046262,-553.27,0.00042465,30]
[331569507,1720521046272,-740.56,0.00042465,30]
[331569508,1720521046282,-500.0,0.00042465,30]
[331569509,1720521046291,-500.0,0.00042465,30]
[331569510,1720521046301,-500.0,0.00042465,30]
[331569511,1720521046311,-500.0,0.00042465,30]
[331569512,1720521046322,-868.9,0.00042465,30]
[331569513,1720521046333,-500.0,0.00042465,30]
[331569514,1720521046343,-500.0,0.00042465,30]
[331569515,1720521046353,-565.11,0.00042465,30]
[331569516,1720521046362,-597.15,0.00042465,30]
[331569517,1720521046372,-500.0,0.00042465,30]
[331569518,1720521046382,-500.0,0.00042465,30]
[331569519,1720521046392,-500.0,0.00042465,30]
[331569520,1720521046401,-624.28414674,0.00042465,30]
[331569521,1720521046411,-618.82,0.00042465,30]
[331569522,1720521046420,-842.29,0.00042465,30]
[331569523,1720521046430,-6274.77,0.00042465,30]
[331569524,1720521046440,-1147.72,0.00042465,30]
[331569525,1720521046450,-500.0,0.00042465,30]
[331569526,1720521046460,-543.48,0.00042465,30]
[331569527,1720521046469,-500.0,0.00042465,30]
[331569528,1720521046479,-853.88,0.00042465,30]
[331569529,1720521046489,-500.0,0.00042465,2]
[331569530,1720521046498,-558.39,0.00042465,30]
[331569531,1720521046508,-500.0,0.00042465,30]
[331569532,1720521046517,-811.27,0.00042465,30]
[331569533,1720521046526,-500.0,0.00042465,30]
[331569534,1720521046536,-500.0,0.00042465,30]
[331569535,1720521046546,-500.0,0.00042465,30]
[331569536,1720521046556,-500.0,0.00042465,30]
[331569537,1720521046566,-500.0,0.00042465,30]
[331569538,1720521046575,-500.0,0.00042465,30]
[331569539,1720521046585,-520.0739724,0.00042465,30]
[331569540,1720521046594,-500.0,0.00042465,30]
[331569541,1720521046604,-500.0,0.00042465,30]
[331569542,1720521046615,-500.0,0.00042465,30]
[331569543,1720521046626,-1811.68,0.00042465,30]
[331569544,1720521046636,-500.0,0.00042465,30]
[331569545,1720521046645,-500.0,0.00042465,30]
[331569546,1720521046655,-500.0,0.00042465,30]
[331569547,1720521046664,-595.77,0.00042465,30]
[331569548,1720521046674,-712.38,0.00042465,30]
[331569549,1720521046683,-3653.85,0.00042465,30]
[331569550,1720521046693,-500.0,0.00042465,30]
[331569551,1720521046704,-791.87,0.00042465,30]
[331569552,1720521046714,-1055.1,0.00042465,30]
[331569553,1720521046790,-883.43,0.00042465,30]
[331569554,1720521046799,-500.0,0.00042465,30]
[331569555,1720521046808,-6436.66,0.00042465,7]
[331569556,1720521046818,-500.0,0.00042465,30]
[331569557,1720521046827,-500.0,0.00042465,30]
[331569558,1720521046836,-500.0,0.00042465,30]
[331569559,1720521046845,-827.15,0.00042465,30]
[331569560,1720521046854,-827.08,0.00042465,30]
[331569561,1720521046863,-4659.11,0.00042465,30]
[331569562,1720521046872,-965.2,0.00042465,30]
[331569563,1720521046883,-729.71,0.00042465,30]
[331569564,1720521046895,-500.0,0.00042465,30]
[331569565,1720521046904,-728.78,0.00042465,30]
[331569566,1720521046913,-152.860135,0.00042465,14]
[331569567,1720521046922,-621.72,0.00042465,30]
[331569568,1720521046931,-1163.1,0.00042465,30]
[331569569,1720521046940,-1246.99,0.00042465,30]
[331569570,1720521046949,-526.41108579,0.00042465,30]
[331569571,1720521046958,-500.0,0.00042465,30]
[331569572,1720521046967,-165.52713,0.00042465,2]
[331569573,1720521046976,-151.0,0.00042465,14]
[331569574,1720521046985,-589.23,0.00042465,30]
[331569575,1720521046994,-165.52713,0.00042465,2]
[331569576,1720521047003,-151.0,0.00042465,14]
[331569577,1720521047011,-886.16,0.00042465,30]
[331569578,1720521047020,-11363.55,0.00042465,30]
[331569579,1720521047030,-500.0,0.00042465,30]
[331569580,1720521047039,-1718.08,0.00042465,30]
[331569581,1720521047049,-500.0,0.00042465,30]
[331569582,1720521047060,-2626.43,0.00042465,30]
[331569583,1720521047069,-717.09,0.00042465,30]
[331569584,1720521047078,-500.0,0.00042465,30]
[331569585,1720521047087,-500.0,0.00042465,30]
[331569586,1720521047097,-151.0,0.00042465,14]
[331569587,1720521047107,-500.0,0.00042465,30]
[331569588,1720521047116,-500.0,0.00042465,2]
[331569589,1720521047127,-1027.29,0.00042465,30]
[331569590,1720521047136,-1010.58,0.00042465,30]
[331569591,1720521047145,-500.0,0.00042465,30]
[331569592,1720521047155,-2129.39,0.00042465,30]
[331569593,1720521047164,-500.0,0.00042465,30]
[331569594,1720521047174,-1478.19,0.00042465,30]
[331569595,1720521047183,-500.0,0.00042465,30]
[331569596,1720521047192,-541.97149572,0.00042477,30]
[331569597,1720521047201,-164.16,0.00042493,2]
[331569598,1720521047210,-150.0,0.00042598,2]
[331569599,1720521047219,-150.0,0.00042598,2]
[331569600,1720521047228,-150.0,0.000426,2]
[331569601,1720521047237,-629.04393181,0.00042614,120]
[331569602,1720521047247,-541.97149572,0.00042632,30]
[331569603,1720521047256,-541.97149572,0.00042726,30]
[331569604,1720521047265,-718.63,0.00042739,30]
[331569605,1720521047274,-707.09,0.00042739,30]
[331569606,1720521047283,-553.27,0.00042739,30]
[331569607,1720521047292,-740.56,0.00042739,30]
[331569608,1720521047301,-466.66146562,0.00042739,30]
[331569609,1720521047310,-500.0,0.00042739,30]
[331569610,1720521047321,-500.0,0.00042739,30]
[331569611,1720521047331,-500.0,0.00042739,30]
[331569612,1720521047342,-868.9,0.00042739,30]
[331569613,1720521047351,-500.0,0.00042739,30]
[331569614,1720521047360,-500.0,0.00042739,30]
[331569615,1720521047370,-565.11,0.00042739,30]
[331569616,1720521047380,-597.15,0.00042739,30]
[331569617,1720521047390,-500.0,0.00042739,30]
[331569618,1720521047400,-500.0,0.00042739,30]
[331569619,1720521047410,-500.0,0.00042739,30]
[331569620,1720521047419,-618.82,0.00042739,30]
[331569621,1720521047429,-842.29,0.00042739,30]
[331569622,1720521047439,-6274.77,0.00042739,30]
[331569623,1720521047449,-1147.72,0.00042739,30]
[331569624,1720521047458,-500.0,0.00042739,30]
[331569625,1720521047467,-543.48,0.00042739,30]
[331569626,1720521047477,-500.0,0.00042739,30]
[331569627,1720521047487,-853.88,0.00042739,30]
[331569628,1720521047495,-500.0,0.00042739,2]
[331569629,1720521047504,-558.39,0.00042739,30]
[331569630,1720521047513,-500.0,0.00042739,30]
[331569631,1720521047523,-811.27,0.00042739,30]
[331569632,1720521047532,-500.0,0.00042739,30]
[331569633,1720521047541,-500.0,0.00042739,30]
[331569634,1720521047550,-500.0,0.00042739,30]
[331569635,1720521047559,-500.0,0.00042739,30]
[331569636,1720521047569,-500.0,0.00042739,30]
[331569637,1720521047578,-500.0,0.00042739,30]
[331569638,1720521047587,-500.0,0.00042739,30]
[331569639,1720521047597,-500.0,0.00042739,30]
[331569640,1720521047606,-500.0,0.00042739,30]
[331569641,1720521047615,-1811.68,0.00042739,30]
[331569642,1720521047624,-500.0,0.00042739,30]
[331569643,1720521047680,-500.0,0.00042739,30]
[331569644,1720521047690,-500.0,0.00042739,30]
[331569645,1720521047700,-595.77,0.00042739,30]
[331569646,1720521047713,-712.38,0.00042739,30]
[331569647,1720521047722,-3653.85,0.00042739,30]
[331569648,1720521047731,-500.0,0.00042739,30]
[331569649,1720521047741,-791.87,0.00042739,30]
[331569650,1720521047752,-1055.1,0.00042739,30]
[331569651,1720521047762,-883.43,0.00042739,30]
[331569652,1720521047771,-500.0,0.00042739,30]
[331569653,1720521047782,-6436.66,0.00042739,7]
[331569654,1720521047792,-1078.826872,0.00042739,14]
[331569655,1720521047802,-500.0,0.00042739,30]
[331569656,1720521047811,-500.0,0.00042739,30]
[331569657,1720521047820,-500.0,0.00042739,30]
[331569658,1720521047830,-827.15,0.00042739,30]
[331569659,1720521047840,-827.08,0.00042739,30]
[331569660,1720521047849,-4659.11,0.00042739,30]
[331569661,1720521047859,-965.2,0.00042739,30]
[331569662,1720521047868,-729.71,0.00042739,30]
[331569663,1720521047879,-500.0,0.00042739,30]
[331569664,1720521047888,-728.78,0.00042739,30]
[331569665,1720521047897,-621.72,0.00042739,30]
[331569666,1720521047906,-1163.1,0.00042739,30]
[331569667,1720521047915,-1246.99,0.00042739,30]
[331569668,1720521047924,-500.0,0.00042739,30]
[331569669,1720521047933,-589.23,0.00042739,30]
[331569670,1720521047942,-886.16,0.00042739,30]
[331569671,1720521047951,-11363.55,0.00042739,30]
[331569672,1720521047960,-500.0,0.00042739,30]
[331569673,1720521047970,-1718.08,0.00042739,30]
[331569674,1720521047980,-500.0,0.00042739,30]
[331569675,1720521047988,-2626.43,0.00042739,30]
[331569676,1720521047999,-717.09,0.00042739,30]
[331569677,1720521048009,-500.0,0.00042739,30]
[331569678,1720521048018,-500.0,0.00042739,30]
[331569679,1720521048029,-500.0,0.00042739,30]
[331569680,1720521048038,-500.0,0.00042739,2]
[331569681,1720521048047,-1010.58,0.00042739,30]
[331569682,1720521048059,-1027.29,0.00042739,30]
[331569683,1720521048069,-500.0,0.00042739,30]
[331569684,1720521048078,-2129.39,0.00042739,30]
[331569685,1720521048088,-500.0,0.00042739,30]
[331569686,1720521048097,-1478.19,0.00042739,30]
[331569687,1720521048106,-500.0,0.00042739,30]
[331569688,1720521048116,-160.35754741,0.00042823,30]
[331569689,1720521048127,-301.27693536,0.00042911,4]
[331569690,1720521048137,-153.0,0.00042968,2]
[331569691,1720521048146,-153.0,0.00042968,2]
[331569692,1720521048155,-153.0,0.00042968,2]
[331569693,1720521048165,-153.0,0.00042968,2]
[331569694,1720521048174,-153.0,0.00042968,2]
[331569695,1720521048183,-153.0,0.00042968,2]
[331569696,1720521048193,-153.0,0.00042968,2]
[331569697,1720521048202,-153.0,0.00042968,2]
[331569698,1720521048211,-153.0,0.00042968,2]
[331569699,1720521048221,-432.5878997,0.00042968,2]
[331569700,1720521048231,-360.5186476,0.00042968,2]
[331569701,1720521048241,-1000.0,0.00043,43]
[331569702,1720521048251,-2040.34238499,0.00043,120]
[331569703,1720521048261,-447.70131595,0.00043,120]
[331569704,1720521048271,-718.63,0.00043013,30]
[331569705,1720521048281,-707.09,0.00043013,30]
[331569706,1720521048292,-553.27,0.00043013,30]
[331569707,1720521048302,-740.56,0.00043013,30]
[331569708,1720521048312,-500.0,0.00043013,30]
[331569709,1720521048322,-500.0,0.00043013,30]
[331569710,1720521048333,-500.0,0.00043013,30]
[331569711,1720521048342,-868.9,0.00043013,30]
[331569712,1720521048353,-500.0,0.00043013,30]
[331569713,1720521048362,-500.0,0.00043013,30]
[331569714,1720521048371,-565.11,0.00043013,30]
[331569715,1720521048381,-597.15,0.00043013,30]
[331569716,1720521048390,-500.0,0.00043013,30]
[331569717,1720521048399,-500.0,0.00043013,30]
[331569718,1720521048408,-500.0,0.00043013,30]
[331569719,1720521048418,-618.82,0.00043013,30]